lending/lending_fUSD_20251106
["ID","MTS","AMOUNT","RATE_DAILY","PERIOD"]
[393296309,1762428639774,-151.0,0.00016717,2]
[393296310,1762428639783,-151.0,0.00016717,2]
[393296311,1762428639792,-151.0,0.00016717,2]
[393296312,1762428639801,-151.0,0.00016717,2]
[393296313,1762428639810,-151.0,0.00016717,2]
[393296314,1762428639819,-151.0,0.00016717,2]
[393296315,1762428639828,-151.0,0.00016717,2]
[393296316,1762428639837,-151.0,0.00016717,2]
[393296317,1762428639846,-151.0,0.00016717,2]
[393296318,1762428639856,-151.0,0.00016717,2]
[393296319,1762428639865,-151.0,0.00016717,2]
[393296320,1762428639874,-151.0,0.00016717,2]
[393296321,1762428639883,-151.0,0.00016717,2]
[393296322,1762428639892,-151.0,0.00016717,2]
[393296323,1762428639901,-151.0,0.00016717,2]
[393296324,1762428639910,-151.0,0.00016717,2]
[393296325,1762428639920,-151.0,0.00016717,2]
[393296326,1762428639929,-151.0,0.00016717,2]
[393296327,1762428639938,-151.0,0.00016717,2]
[393296328,1762428639947,-509.39,0.00016726,2]
[393296329,1762428639956,-514.83814224,0.00016726,2]
[393296330,1762428639965,-500.0,0.00016726,2]
[393296332,1762428639974,-1839.41,0.00016726,2]
[393296333,1762428639983,-500.0,0.00016726,2]
[393296334,1762428639992,-500.0,0.00016726,2]
[393296335,1762428640000,-500.0,0.00016726,2]
[393296336,1762428640010,-706.22,0.00016726,2]
[393296337,1762428640019,-500.0,0.00016726,2]
[393296338,1762428640028,-220.07510407,0.00016726,2]
[393296339,1762428640037,-500.0,0.00016726,2]
[393296340,1762428640046,-500.0,0.00016726,2]
[393296341,1762428640055,-500.0,0.00016726,2]
[393296342,1762428640064,-500.0,0.00016726,2]
[393296343,1762428640074,-500.0,0.00016726,2]
[393296344,1762428640083,-500.0,0.00016726,2]
[393296345,1762428640092,-500.0,0.00016726,2]
[393296346,1762428640101,-412.96300415,0.00016726,2]
[393296347,1762428640110,-2419.783,0.00016727,2]
[393296348,1762428640119,-420000.0,0.00016727,2]
[393296349,1762428640128,-1000.0,0.00016727,2]
[393296350,1762428640138,-7814.08270025,0.00016768,2]
[393296351,1762428640147,-278.4183062,0.00016768,2]
[393296352,1762428640156,-500.0,0.00016773,2]
[393296353,1762428640165,-500.0,0.00016773,2]
[393296354,1762428640174,-500.0,0.00016773,2]
[393296355,1762428640184,-500.0,0.00016773,2]
[393296356,1762428640193,-500.0,0.00016773,2]
[393296357,1762428640202,-500.0,0.00016773,2]
[393296358,1762428640211,-500.0,0.00016773,2]
[393296359,1762428640220,-500.0,0.00016773,2]
[393296360,1762428640230,-500.0,0.00016773,2]
[393296361,1762428640239,-500.90089396,0.00016773,2]
[393296362,1762428640249,-500.0,0.00016773,2]
[393296363,1762428640258,-500.0,0.00016773,2]
[393296364,1762428640268,-500.0,0.00016773,2]
[393296365,1762428640277,-500.0,0.00016773,2]
[393296366,1762428640286,-500.47343075,0.00016773,2]
[393296367,1762428640295,-500.0,0.00016773,2]
[393296368,1762428640304,-164.11763821,0.00016773,2]
[393296369,1762428640313,-238.10507591,0.00016808,2]
[393296370,1762428640322,-300.0,0.00016808,2]
[393296371,1762428640332,-283.7415811,0.00016808,2]
[393296372,1762428640341,-300.0,0.00016808,2]
[393296373,1762428640350,-195.0,0.00016808,2]
[393296374,1762428640359,-2500.0,0.00016808,2]
[393296375,1762428640369,-197.14353736,0.00016808,2]
[393296376,1762428640378,-279.0,0.00016808,2]
[393296377,1762428640387,-150.27762847,0.00016808,2]
[393296378,1762428640397,-250.0,0.00016808,2]
[393296379,1762428640406,-300.0,0.00016808,2]
[393296380,1762428640415,-300.0,0.00016808,2]
[393296381,1762428640424,-300.0,0.00016808,2]
[393296382,1762428640434,-323.34285068,0.00016808,2]
[393296383,1762428640442,-300.0,0.00016808,2]
[393296384,1762428640451,-300.0,0.00016808,2]
[393296385,1762428640460,-250.0,0.00016808,2]
[393296386,1762428640469,-279.02965654,0.00016809,2]
[393296387,1762428640478,-476.76,0.00016841,2]
[393296388,1762428640488,-420.0,0.00016847,2]
[393296389,1762428640497,-420.0,0.00016847,2]
[393296390,1762428640506,-1680.0,0.00016866,2]
[393296391,1762428640519,-237.45497966,0.00016905,2]
[393296392,1762428640528,-7814.08270025,0.0001691,2]
[393296393,1762428640537,-278.4183062,0.0001691,2]
[393296394,1762428640547,-200.0,0.00016939,2]
[393296395,1762428640556,-200.0,0.00016939,2]
[393296396,1762428640567,-200.0,0.00016939,2]
[393296397,1762428640576,-201.07254976,0.00016939,2]
[393296398,1762428640585,-500.0,0.00016973,2]
[393296399,1762428640594,-516.43133353,0.00016973,2]
[393296400,1762428640603,-500.0,0.00016973,2]
[393296401,1762428640612,-500.0,0.00016973,2]
[393296402,1762428640621,-500.0,0.00016973,2]
[393296403,1762428640630,-501.40523433,0.00016973,2]
[393296404,1762428640639,-500.0,0.00016973,2]
[393296405,1762428640648,-500.0,0.00016973,2]
[393296406,1762428640657,-634.78303561,0.00016973,2]
[393296407,1762428640666,-500.0,0.00016973,2]
[393296408,1762428640675,-459.61733602,0.00016973,2]
[393296409,1762428640685,-500.0,0.00016973,2]
[393296410,1762428640694,-500.0,0.00016973,2]
[393296411,1762428640703,-500.0,0.00016973,2]
[393296412,1762428640712,-511.61246005,0.00016973,2]
[393296413,1762428640721,-500.0,0.00016973,2]
[393296414,1762428640731,-500.0,0.00016973,2]
[393296415,1762428640742,-500.0,0.00016973,2]
[393296416,1762428640753,-500.0,0.00016973,2]
[393296417,1762428640764,-500.0,0.00016973,2]
[393296418,1762428640774,-500.0,0.00016973,2]
[393296419,1762428640784,-73769.44,0.00016986,2]
[393296420,1762428640794,-2326.0,0.00016986,2]
[393296421,1762428640803,-500.0,0.00016989,2]
[393296422,1762428640813,-199029.79343565,0.0001699,2]
[393296423,1762428640822,-279.02965654,0.00016991,2]
[393296424,1762428640831,-273.72,0.00016991,2]
[393296425,1762428640841,-260.60283506,0.00016992,2]
[393296426,1762428640851,-250.0,0.00017,2]
[393296427,1762428640859,-2000.0,0.00017,2]
[393296428,1762428640868,-7814.08270025,0.00017051,2]
[393296429,1762428640878,-278.4183062,0.00017051,2]
[393296430,1762428640887,-362.35,0.00017068,2]
[393296431,1762428640897,-284.39511871,0.00017076,2]
[393296432,1762428640906,-358.79,0.00017076,2]
[393296433,1762428640915,-500.0,0.00017123,2]
[393296434,1762428640924,-279.02965654,0.00017173,2]
[393296435,1762428640933,-7814.08270025,0.00017193,2]
[393296436,1762428640943,-278.4183062,0.00017193,2]
[393296437,1762428640952,-362.35,0.00017205,2]
[393296438,1762428640961,-358.8,0.00017212,2]
[393296439,1762428640970,-273.72,0.00017265,2]
[393296440,1762428640980,-627.93010433,0.00017321,2]
[393296441,1762428640989,-1000.0,0.00017321,2]
[393296442,1762428640998,-1025.42297104,0.00017321,2]
[393296443,1762428641008,-483.00459956,0.00017321,2]
[393296444,1762428641020,-500.0,0.00017321,2]
[393296445,1762428641029,-1000.0,0.00017321,2]
[393296446,1762428641038,-1000.0,0.00017321,2]
[393296447,1762428641047,-1000.0,0.00017321,2]
[393296448,1762428641056,-1000.0,0.00017321,2]
[393296449,1762428641065,-1000.0,0.00017321,2]
[393296450,1762428641074,-1000.0,0.00017321,2]
[393296451,1762428641085,-1000.0,0.00017321,2]
[393296452,1762428641094,-1003.46009537,0.00017321,2]
[393296453,1762428641103,-7814.08270025,0.00017334,2]
[393296454,1762428641112,-278.4183062,0.00017334,2]
[393296455,1762428641121,-362.35,0.00017342,2]
[393296456,1762428641130,-279.02965654,0.00017354,2]
[393296457,1762428641139,-162.64913491,0.00017459,2]
[393296458,1762428641148,-4692.0,0.0001746,2]
[393296459,1762428641157,-3532.0,0.00017467,2]
[393296460,1762428641166,-7814.08270025,0.00017476,2]
[393296461,1762428641175,-278.4183062,0.00017476,2]
[393296462,1762428641184,-362.36,0.00017479,2]
[393296463,1762428641193,-477.87911524,0.00017489,2]
[393296464,1762428641202,-20000.0,0.000175,2]
[393296465,1762428641212,-1000.0,0.00017521,2]
[393296466,1762428641221,-1000.0,0.00017521,2]
[393296467,1762428641230,-1000.0,0.00017521,2]
[393296468,1762428641239,-1000.0,0.00017521,2]
[393296469,1762428641248,-1000.0,0.00017521,2]
[393296470,1762428641257,-1000.0,0.00017521,2]
[393296471,1762428641266,-279.17392985,0.00017521,2]
[393296472,1762428641276,-1000.0,0.00017521,2]
[393296473,1762428641284,-324.3529394,0.00017521,2]
[393296474,1762428641293,-1000.0,0.00017521,2]
[393296475,1762428641302,-1000.0,0.00017521,2]
[393296476,1762428641311,-518.75704326,0.00017521,2]
[393296477,1762428641320,-543.5220209,0.00017521,2]
[393296478,1762428641329,-1000.0,0.00017521,2]
[393296479,1762428641338,-599.95401361,0.00017521,2]
[393296480,1762428641347,-279.02965654,0.00017536,2]
[393296481,1762428641356,-273.72,0.00017539,2]
[393296482,1762428641365,-820.0,0.00017555,2]
[393296483,1762428641374,-533.35025339,0.00017572,7]
[393296484,1762428641565,-3532.0,0.0001758,2]
[393296485,1762428641575,-706.22,0.00017616,2]
[393296486,1762428641584,-517.47400377,0.00017616,2]
[393296487,1762428641595,-7814.08270025,0.00017617,2]
[393296488,1762428641605,-278.4183062,0.00017617,2]
[393296489,1762428641614,-1000.0,0.0001764,2]
[393296490,1762428641623,-865.79851054,0.00017645,2]
[393296491,1762428641632,-3532.0,0.00017676,2]
[393296492,1762428641642,-3532.0,0.00017698,2]
[393296493,1762428641651,-4692.0,0.00017698,2]
[393296494,1762428641660,-5000.0,0.000177,2]
[393296495,1762428641668,-213.90101634,0.00017708,2]
[393296496,1762428641677,-209.30050752,0.00017716,2]
[393296497,1762428641687,-3532.0,0.00017718,2]
[393296498,1762428641696,-279.02965654,0.00017718,2]
[393296499,1762428641705,-300.0,0.00017722,2]
[393296500,1762428641714,-195.0,0.00017722,2]
[393296501,1762428641723,-250.0,0.00017722,2]
[393296502,1762428641732,-500.0,0.00017727,2]
[393296503,1762428641741,-6786.09,0.00017728,2]
[393296504,1762428641750,-19778.52,0.00017728,2]
[393296505,1762428641759,-1083.77,0.00017728,2]
[393296506,1762428641769,-1311.24,0.00017728,2]
[393296507,1762428641779,-7814.08270025,0.00017759,2]
[393296508,1762428641788,-278.4183062,0.00017759,2]
[393296509,1762428641797,-152.4823511,0.0001776,2]
[393296510,1762428641807,-150.0,0.00017764,2]
[393296511,1762428641816,-1000.0,0.00017768,2]
[393296512,1762428641825,-11397.0,0.00017771,2]
[393296513,1762428641834,-1000.0,0.00017795,2]
[393296514,1762428641843,-151.0,0.00017797,2]
[393296515,1762428641852,-500.0,0.00017799,2]
[393296516,1762428641862,-593.28012558,0.00017799,2]
[393296517,1762428641871,-33843.27340093,0.000178,2]
[393296518,1762428641880,-374.1505,0.000178,2]
[393296519,1762428641889,-1856.0,0.000178,2]
[393296520,1762428641898,-3532.0,0.00017806,2]
[393296521,1762428641907,-273.75608539,0.00017813,2]
[393296522,1762428641917,-150.0,0.00017818,2]
[393296523,1762428641926,-2868.24355,0.0001782,2]
[393296524,1762428641935,-1223.18376974,0.0001782,2]
[393296525,1762428641944,-608.492,0.0001785,2]
[393296526,1762428641953,-200.0,0.00017855,2]
[393296527,1762428641962,-200.0,0.00017856,2]
[393296528,1762428641972,-150.0,0.00017867,2]
[393296529,1762428641981,-355.25282514,0.00017868,2]
[393296530,1762428641990,-1500.0,0.00017868,2]
[393296531,1762428641998,-1196.23949712,0.00017868,2]
[393296532,1762428642007,-1500.0,0.00017868,2]
[393296533,1762428642017,-1500.0,0.00017868,2]
[393296534,1762428642026,-1500.0,0.00017868,2]
[393296535,1762428642035,-277.26642779,0.00017868,2]
[393296536,1762428642045,-1500.0,0.00017868,2]
[393296537,1762428642054,-1000.0,0.00017878,2]
[393296538,1762428642064,-500.0,0.00017899,2]
[393296539,1762428642073,-2744.9989,0.000179,2]
[393296540,1762428642082,-2979.73443888,0.000179,2]
[393296541,1762428642091,-7814.08270025,0.000179,2]
[393296542,1762428642100,-279.02965654,0.000179,2]
[393296543,1762428642109,-278.4183062,0.000179,2]
[393296544,1762428642118,-1229.51174083,0.000179,2]
[393296545,1762428642127,-3532.0,0.00017902,2]
[393296546,1762428642136,-150.0,0.00017912,2]
[393296547,1762428642146,-284.39511871,0.00017921,2]
[393296548,1762428642155,-2868.24355,0.0001793,2]
[393296549,1762428642164,-150.0,0.00017954,2]
[393296550,1762428642172,-150.0,0.00017954,2]
[393296551,1762428642182,-150.0,0.00017954,2]
[393296552,1762428642191,-150.0,0.00017954,2]
[393296553,1762428642200,-150.0,0.00017954,2]
[393296554,1762428642209,-500.0,0.00017954,2]
[393296555,1762428642218,-251.64103016,0.00017954,2]
[393296556,1762428642227,-150.0,0.00017954,2]
[393296557,1762428642236,-500.0,0.00017954,2]
[393296558,1762428642245,-300.0,0.00017954,2]
[393296559,1762428642255,-150.0,0.00017954,2]
[393296560,1762428642265,-150.0,0.00017954,2]
[393296561,1762428642274,-150.0,0.00017954,2]
[393296562,1762428642283,-154.17848018,0.00017954,2]
[393296563,1762428642292,-162.44257324,0.00017954,2]
[393296564,1762428642302,-150.0,0.00017954,2]
[393296566,1762428642311,-150.0,0.00017954,2]
[393296569,1762428642320,-500.0,0.00017954,2]
[393296571,1762428642330,-500.0,0.00017954,2]
[393296573,1762428642339,-152.08698658,0.00017954,2]
[393296575,1762428642348,-500.0,0.00017954,2]
[393296576,1762428642357,-150.0,0.00017954,2]
[393296577,1762428642367,-599.0,0.00017954,2]
[393296578,1762428642375,-500.0,0.00017954,2]
[393296579,1762428642385,-150.0,0.00017954,2]
[393296580,1762428642394,-500.0,0.00017954,2]
[393296581,1762428642403,-1000.0,0.0001796,2]
[393296582,1762428642412,-150.0,0.00017967,2]
[393296583,1762428642421,-329.0,0.00017973,2]
[393296584,1762428642431,-500.0,0.00017973,2]
[393296585,1762428642440,-500.0,0.00017973,2]
[393296586,1762428642449,-183.4285495,0.00017973,2]
[393296587,1762428642458,-500.0,0.00017973,2]
[393296588,1762428642467,-506.28852507,0.00017973,2]
[393296589,1762428642476,-500.0,0.00017973,2]
[393296590,1762428642485,-160.41796336,0.00017973,2]
[393296591,1762428642495,-150.13919962,0.00017973,2]
[393296592,1762428642504,-500.0,0.00017973,2]
[393296593,1762428642516,-537.03503574,0.00017973,2]
[393296594,1762428642526,-500.0,0.00017973,2]
[393296595,1762428642535,-500.0,0.00017973,2]
[393296596,1762428642547,-406.97735465,0.00017973,2]
[393296597,1762428642557,-353.80511689,0.00017973,2]
[393296598,1762428642567,-231.42602229,0.00017973,2]
[393296599,1762428642576,-500.0,0.00017973,2]
[393296600,1762428642585,-500.0,0.00017973,2]
[393296601,1762428642597,-351.16553114,0.00017973,2]
[393296602,1762428642607,-1000.0,0.00017976,2]
[393296603,1762428642616,-500.0,0.0001799,2]
[393296604,1762428642625,-360.49368471,0.0001799,2]
[393296605,1762428642635,-360.49368471,0.0001799,2]
[393296606,1762428642644,-360.49368471,0.0001799,2]
[393296607,1762428642654,-150.0,0.00017996,2]
[393296608,1762428642663,-150.0,0.00017997,2]
[393296609,1762428642672,-151.0,0.00017997,2]
[393296610,1762428642681,-500.0,0.00017998,2]
[393296611,1762428642691,-500.0,0.00017998,2]
[393296612,1762428642700,-500.0,0.00017998,2]
[393296613,1762428642716,-500.0,0.00017998,2]
[393296614,1762428642725,-500.0,0.00017999,2]
[393296615,1762428642734,-500.0,0.00017999,2]
[393296616,1762428642743,-500.0,0.00017999,2]
[393296617,1762428642752,-500.0,0.00017999,2]
[393296618,1762428642761,-500.0,0.00017999,2]
[393296619,1762428642771,-340.32,0.00017999,2]
[393296620,1762428642780,-155.0,0.00017999,2]
[393296621,1762428642789,-300.0,0.00017999,2]
[393296622,1762428642800,-666.0,0.00017999,2]
[393296623,1762428642809,-150.0,0.00017999,2]
[393296624,1762428642819,-500.0,0.00017999,2]
[393296625,1762428642830,-509.39,0.00017999,2]
[393296626,1762428642839,-509.39,0.00017999,2]
[393296627,1762428642849,-509.39,0.00017999,2]
[393296628,1762428642859,-509.39,0.00017999,2]
[393296629,1762428642867,-509.39,0.00017999,2]
[393296630,1762428642876,-509.39,0.00017999,2]
[393296631,1762428642885,-509.39,0.00017999,2]
[393296632,1762428642894,-509.39,0.00017999,2]
[393296633,1762428642904,-509.39,0.00017999,2]
[393296634,1762428642913,-509.39,0.00017999,2]
[393296635,1762428642922,-509.39,0.00017999,2]
[393296636,1762428642933,-509.39,0.00017999,2]
[393296637,1762428642941,-509.39,0.00017999,2]
[393296638,1762428642951,-509.39,0.00017999,2]
[393296639,1762428642959,-509.39,0.00017999,2]
[393296640,1762428642968,-509.39,0.00017999,2]
[393296641,1762428642977,-509.39,0.00017999,2]
[393296642,1762428642986,-509.39,0.00017999,2]
[393296643,1762428642995,-509.39,0.00017999,2]
[393296644,1762428643005,-509.39,0.00017999,2]
[393296645,1762428643014,-509.39,0.00017999,2]
[393296646,1762428643023,-509.39,0.00017999,2]
[393296647,1762428643032,-509.58319318,0.00017999,2]
[393296648,1762428643042,-1839.41,0.00017999,2]
[393296649,1762428643051,-1839.41,0.00017999,2]
[393296650,1762428643061,-1839.41,0.00017999,2]
[393296651,1762428643070,-1839.41,0.00017999,2]
[393296652,1762428643079,-1839.41,0.00017999,2]
[393296653,1762428643087,-1839.41,0.00017999,2]
[393296654,1762428643097,-1839.41,0.00017999,2]
[393296655,1762428643106,-1839.41,0.00017999,2]
[393296656,1762428643115,-1839.41,0.00017999,2]
[393296657,1762428643124,-1839.41,0.00017999,2]
[393296658,1762428643133,-1839.41,0.00017999,2]
[393296659,1762428643143,-1839.41,0.00017999,2]
[393296660,1762428643152,-1839.41,0.00017999,2]
[393296661,1762428643161,-1839.41,0.00017999,2]
[393296662,1762428643170,-1839.41,0.00017999,2]
[393296663,1762428643179,-1839.41,0.00017999,2]
[393296664,1762428643188,-1839.41,0.00017999,2]
[393296665,1762428643197,-1839.41,0.00017999,2]
[393296666,1762428643207,-1839.41,0.00017999,2]
[393296667,1762428643217,-1839.41,0.00017999,2]
[393296668,1762428643227,-1839.41,0.00017999,2]
[393296669,1762428643236,-1839.41,0.00017999,2]
[393296670,1762428643245,-1839.58088366,0.00017999,2]
[393296671,1762428643254,-515.94292169,0.00017999,2]
[393296672,1762428643263,-266.938,0.00017999,2]
[393296673,1762428643273,-296.87113101,0.00017999,2]
[393296674,1762428643282,-666.0,0.00017999,2]
[393296675,1762428643292,-706.22,0.00017999,2]
[393296676,1762428643301,-706.22,0.00017999,2]
[393296677,1762428643310,-706.22,0.00017999,2]
[393296678,1762428643319,-706.22,0.00017999,2]
[393296679,1762428643328,-706.22,0.00017999,2]
[393296680,1762428643337,-706.22,0.00017999,2]
[393296681,1762428643346,-706.22,0.00017999,2]
[393296682,1762428643355,-706.22,0.00017999,2]
[393296683,1762428643365,-706.22,0.00017999,2]
[393296684,1762428643374,-706.22,0.00017999,2]
[393296685,1762428643383,-706.22,0.00017999,2]
[393296686,1762428643392,-706.22,0.00017999,2]
[393296687,1762428643402,-706.22,0.00017999,2]
[393296688,1762428643410,-706.22,0.00017999,2]
[393296689,1762428643420,-706.22,0.00017999,2]
[393296690,1762428643430,-706.22,0.00017999,2]
[393296691,1762428643439,-706.22,0.00017999,2]
[393296692,1762428643449,-706.22,0.00017999,2]
[393296693,1762428643458,-706.22,0.00017999,2]
[393296694,1762428643468,-706.22,0.00017999,2]
[393296695,1762428643477,-706.22,0.00017999,2]
[393296696,1762428643486,-706.36879056,0.00017999,2]
[393296697,1762428643495,-500.0,0.00017999,2]
[393296698,1762428643504,-500.0,0.00017999,2]
[393296699,1762428643515,-500.0,0.00017999,2]
[393296700,1762428643526,-500.0,0.00017999,2]
[393296701,1762428643535,-500.0,0.00017999,2]
[393296702,1762428643544,-408.1311233,0.00017999,2]
[393296703,1762428643553,-574.14159547,0.00017999,2]
[393296704,1762428643563,-500.0,0.00017999,2]
[393296705,1762428643572,-500.0,0.00017999,2]
[393296706,1762428643581,-324.02785148,0.00017999,2]
[393296707,1762428643592,-307.45218061,0.00017999,2]
[393296708,1762428643603,-500.0,0.00017999,2]
[393296709,1762428643613,-500.0,0.00017999,2]
[393296710,1762428643623,-500.0,0.00017999,2]
[393296711,1762428643632,-500.0,0.00017999,2]
[393296712,1762428643642,-500.0,0.00017999,2]
[393296713,1762428643652,-500.0,0.00017999,2]
[393296714,1762428643663,-500.0,0.00017999,2]
[393296715,1762428643672,-500.0,0.00017999,2]
[393296716,1762428643681,-338.58569463,0.00017999,2]
[393296717,1762428643690,-300.0,0.00017999,2]
[393296718,1762428643699,-666.0,0.00017999,2]
[393296719,1762428643708,-2980.0,0.00018,2]
[393296720,1762428643717,-3586370.78964987,0.00018,2]
[393296721,1762428643736,-2950.10848936,0.00018,2]
[393296722,1762428643747,-3919.1628,0.00018,2]
[393296723,1762428643758,-1688.59921977,0.00018,2]
[393296724,1762428643774,-473.93335833,0.00018,2]
[393296725,1762428643784,-2835.8880102,0.00018,2]
[393296726,1762428643796,-606.52911564,0.00018,2]
[393296727,1762428643808,-1162.31644101,0.00018,2]
[393296728,1762428643821,-683.95731502,0.00018,2]
[393296729,1762428643838,-99271.68041527,0.00018,2]
[393296732,1762428643988,469.26193544,0.00038703,120]
[393296734,1762428644168,500.0,0.00038703,120]
[393296735,1762428644294,517.92570331,0.00038703,120]
[393296736,1762428644344,-2072.69790822,0.00018,2]
[393296737,1762428644355,-39629.96771298,0.00018,2]
[393296738,1762428644366,-7613.2,0.00018,2]
[393296739,1762428644527,-2283.63050092,0.00018,2]
[393296740,1762428644539,-155911.50518588,0.00018,2]
[393296743,1762428647683,500.0,0.00038703,120]
[393296744,1762428647937,478.98807696,0.00038703,120]
[393296745,1762428649081,300.64623403,0.00038703,120]
[393296746,1762428649457,500.0,0.00038703,120]
[393296747,1762428649686,598.41825178,0.00038703,120]
[393296748,1762428651305,379.40935336,0.00038703,120]
[393296749,1762428653245,490.90191928,0.00038703,120]
[393296750,1762428654121,172.90644012,0.00038703,120]
[393296751,1762428659510,456.7493029,0.00038703,120]
[393296752,1762428660465,377.91568526,0.00038703,120]
[393296753,1762428661389,200.0,0.00038703,30]
[393296754,1762428662892,198.62086248,0.00038703,120]
[393296755,1762428666061,228.86329127,0.00038703,120]
[393296756,1762428674214,385.52348472,0.00038703,120]
[393296757,1762428676058,474.11919851,0.00038703,120]
[393296758,1762428678134,485.98156648,0.00038703,120]
[393296759,1762428678896,454.81313381,0.00038703,120]
[393296760,1762428683118,235.36430613,0.00038703,120]
[393296761,1762428695319,164.2258057,0.00038703,120]
[393296762,1762428698775,182.91329321,0.00038703,120]
[393296763,1762428700800,272.41701809,0.00038703,120]
[393296764,1762428701775,414.17624846,0.00038703,30]
[393296765,1762428704584,226.07194877,0.00038703,120]
[393296766,1762428706145,179.01237116,0.00038703,120]
[393296767,1762428707845,285.1864851,0.00038703,120]
[393296768,1762428711463,438.1793443,0.00038703,120]
[393296769,1762428714395,351.46015555,0.00038703,120]
[393296770,1762428715778,497.24369885,0.00038703,120]
[393296771,1762428725423,318.36291136,0.00038703,120]
[393296772,1762428725767,459.37029795,0.00038703,120]
[393296773,1762428727844,500.0,0.00038703,120]
[393296774,1762428728548,500.0,0.00038703,120]
[393296775,1762428728695,151.0,0.00038703,120]
[393296776,1762428729165,500.0,0.00038703,120]
[393296777,1762428729307,151.0,0.00038703,120]
[393296778,1762428729913,151.0,0.00038703,120]
[393296779,1762428730564,151.0,0.00038703,120]
[393296780,1762428731168,151.0,0.00038703,120]
[393296781,1762428731661,151.0,0.00038703,120]
[393296782,1762428732214,151.0,0.00038703,120]
[393296783,1762428732288,151.0,0.00038703,120]
[393296784,1762428732849,151.0,0.00038703,120]
[393296785,1762428733026,151.0,0.00038703,120]
[393296786,1762428733476,151.0,0.00038703,120]
[393296787,1762428733666,151.0,0.00038703,120]
[393296788,1762428734092,151.0,0.00038703,120]
[393296789,1762428734282,151.0,0.00038703,120]
[393296790,1762428734722,151.0,0.00038703,120]
[393296791,1762428734790,446.49109026,0.00038703,120]
[393296792,1762428734901,151.0,0.00038703,120]
[393296793,1762428735171,250.0,0.00038703,120]
[393296794,1762428735343,151.0,0.00038703,120]
[393296795,1762428735510,151.0,0.00038703,120]
[393296796,1762428735795,250.0,0.00038703,120]
[393296797,1762428735945,151.0,0.00038703,120]
[393296798,1762428736112,151.0,0.00038703,120]
[393296799,1762428736430,250.0,0.00038703,120]
[393296800,1762428736603,151.0,0.00038703,120]
[393296801,1762428736740,151.0,0.00038703,120]
[393296802,1762428737049,250.0,0.00038703,120]
[393296803,1762428737231,151.0,0.00038703,120]
[393296804,1762428737336,151.0,0.00038703,120]
[393296805,1762428737731,250.0,0.00038703,120]
[393296806,1762428737864,151.0,0.00038703,120]
[393296807,1762428738355,250.0,0.00038703,120]
[393296808,1762428738491,151.0,0.00038703,120]
[393296809,1762428739007,250.0,0.00038703,120]
[393296810,1762428739118,151.0,0.00038703,120]
[393296811,1762428739785,151.0,0.00038703,120]
[393296812,1762428741443,151.0,0.00038703,120]
[393296813,1762428741997,151.0,0.00038703,120]
[393296814,1762428743525,496.19185526,0.00038703,32]
[393296815,1762428748833,166.92865965,0.00038703,120]
[393296816,1762428764358,404.97665833,0.00038702,120]
[393296817,1762428765177,215.5,0.00038702,30]
[393296818,1762428821132,500.0,0.00038702,120]
[393296819,1762428821360,500.0,0.00038702,120]
[393296820,1762428821592,500.0,0.00038702,120]